bitfinex/quotes_ETHUSD_20240823
["timestamp","ask_amount","ask_price","bid_price","bid_amount"]
[1724415444520,7.72863699,2661.7,2661.2,8.493695]
[1724415444872,7.72863699,2661.7,2661.3,0.05037589]
[1724415445169,7.72863699,2661.7,2661.2,8.493695]
[1724415445377,7.72863699,2661.7,2661.4,0.05027383]
[1724415445560,7.72863699,2661.7,2661.3,0.05037589]
[1724415445723,7.72863699,2661.7,2661.2,8.493695]
[1724415445925,7.72863699,2661.7,2661.3,0.05037589]
[1724415446170,7.72863699,2661.7,2661.2,8.493695]
[1724415446369,7.72863699,2661.7,2661.4,0.05027383]
[1724415446671,7.72863699,2661.7,2661.3,0.05037589]
[1724415446969,7.72863699,2661.7,2661.4,0.05027383]
[1724415447373,7.72863699,2661.7,2661.2,8.493695]
[1724415447540,7.72863699,2661.7,2661.5,0.05017178]
[1724415447724,7.72863699,2661.7,2661.2,7.51524]
[1724415448070,7.72863699,2661.7,2661.3,0.05037589]
[1724415448576,7.72863699,2661.7,2661.4,0.05027383]
[1724415448959,7.72863699,2661.7,2661.2,4.736064]
[1724415449160,7.72863699,2661.7,2661.3,0.05037589]
[1724415449562,1.58634699,2661.5,2661.0,6.02709]
[1724415449769,3.7582,2660.9,2660.4,19.97]
[1724415450061,1.58634699,2660.7,2660.2,3.75903]
[1724415450234,1.58634699,2660.7,2660.2,3.75902]
[1724415450454,2.2923,2660.8,2660.4,3.75883]
[1724415450621,5.34448699,2660.9,2660.5,0.375883]
[1724415451060,2.3887,2661.0,2660.5,4.134433]
[1724415451260,5.34427699,2661.1,2660.6,3.75854]
[1724415452234,6.14642,2661.2,2660.7,3.75829]
[1724415452465,2.3887,2661.2,2660.8,3.75825]
[1724415453337,6.14641,2661.2,2660.6,7.51696]
[1724415453535,6.14641,2661.2,2660.7,1.192309]
[1724415455387,3.7576,2661.3,2660.7,4.950709]
[1724415456171,3.7576,2661.3,2660.7,8.709029]
[1724415458488,3.7576,2661.3,2660.8,0.92163688]
[1724415459040,3.7576,2661.3,2660.8,4.67986688]
[1724415459288,9.90347,2661.5,2660.9,6.22492]
[1724415459584,3.75746,2661.4,2661.0,0.76077844]
[1724415459746,6.14607,2661.5,2661.0,0.76077844]
[1724415459944,9.90348,2661.5,2661.0,0.76077844]
[1724415460175,7.51478,2661.5,2661.0,0.76077844]
[1724415460481,3.75717,2661.6,2661.1,0.69855784]
[1724415460725,6.18676,2661.7,2661.1,0.69855784]
[1724415460726,3.75706,2661.7,2661.2,2.2972]
[1724415460884,3.75706,2661.7,2661.2,2.3431186]
[1724415461211,3.75706,2661.7,2661.2,6.1007386]
[1724415461352,3.75706,2661.7,2661.3,1.21433834]
[1724415461541,3.75706,2661.7,2661.4,0.04571447]
[1724415468458,5.34361699,2661.5,2661.4,0.04571447]
[1724415468891,5.34340699,2661.7,2661.4,0.04571447]
[1724415469224,7.51415,2661.7,2661.5,0.04561242]
[1724415469422,7.51413,2661.7,2661.5,0.04561242]
[1724415469625,7.51413,2661.7,2661.1,4.45631784]
[1724415469795,3.75716,2661.6,2661.2,1.43514178]
[1724415470321,5.34340699,2661.7,2661.2,1.43514178]
[1724415470526,3.75706,2661.7,2661.2,1.43514178]
[1724415472532,3.75706,2661.7,2661.3,0.04562031]
[1724415472735,7.51413,2661.7,2661.3,0.04562031]
[1724415472917,3.75714,2661.6,2661.2,1.43514178]
[1724415473122,3.75714,2661.6,2661.4,0.04551826]
[1724415473307,3.75714,2661.6,2661.3,0.63476127]
[1724415473509,3.75714,2661.6,2661.5,0.0454162]
[1724415473694,3.75714,2661.6,2661.4,0.04551826]
[1724415474006,3.75714,2661.6,2661.5,0.0454162]
[1724415474532,3.75714,2661.6,2661.2,1.43514178]
[1724415474733,3.75714,2661.6,2661.5,0.0454162]
[1724415474934,3.75714,2661.6,2661.2,1.43514178]
[1724415475133,3.75714,2661.6,2661.5,0.0454162]
[1724415475338,3.75714,2661.6,2661.1,4.45626784]
[1724415475499,3.75714,2661.6,2661.5,0.0454162]
[1724415475695,3.75714,2661.6,2661.1,4.45626784]
[1724415475896,3.75714,2661.6,2661.5,0.0454162]
[1724415476131,3.75714,2661.6,2661.1,4.45626784]
[1724415476326,3.75714,2661.6,2661.5,0.0454162]
[1724415476539,3.75714,2661.6,2661.1,4.45626784]
[1724415477116,3.75714,2661.6,2661.2,0.04572238]
[1724415477431,3.75714,2661.6,2661.2,1.4854314]
[1724415479344,5.34340699,2661.7,2661.2,1.4854314]
[1724415479640,9.09995699,2661.9,2661.4,6.1973]
[1724415479842,3.75686,2661.8,2661.4,6.1973]
[1724415480051,3.75686,2661.8,2661.5,0.04542066]
[1724415480808,5.34314699,2661.9,2661.5,0.04542066]
[1724415481142,3.85124566,2662.7,2662.2,3.75619]
[1724415481300,3.75574,2662.6,2662.3,2.4399]
[1724415481501,3.75574,2662.6,2662.3,2.4844867]
[1724415482607,3.75574,2662.6,2662.3,0.0445867]
[1724415482608,3.75594,2662.5,2662.3,0.0445867]
[1724415483028,3.75594,2662.5,2662.1,2.4399]
[1724415483304,3.75594,2662.5,2662.4,0.04448472]
[1724415483530,3.75594,2662.5,2662.1,2.4399]
[1724415483704,3.75594,2662.5,2662.4,0.04448472]
[1724415483907,3.75574,2662.6,2662.1,2.4399]
[1724415484104,3.75574,2662.6,2662.4,0.04448472]
[1724415484304,3.75574,2662.6,2662.1,2.4399]
[1724415484513,3.75574,2662.6,2662.5,0.04310864]
[1724415484809,3.75574,2662.6,2662.5,0.04188147]
[1724415485442,3.75574,2662.6,2662.5,0.04088147]
[1724415485808,3.75574,2662.6,2662.1,2.4399]
[1724415485809,6.12074,2662.6,2662.0,3.75647]
[1724415486141,7.70708699,2662.6,2662.5,0.04088147]
[1724415486344,7.70708699,2662.6,2662.1,0.619637]
[1724415486964,7.70708699,2662.6,2662.2,0.04118741]
[1724415487875,5.34208699,2662.6,2662.2,0.04118741]
[1724415488583,3.75574,2662.6,2662.2,0.04118741]
[1724415488780,3.75574,2662.6,2662.2,0.85855785]
[1724415491783,7.51124,2662.7,2662.2,0.85855785]
[1724415492777,3.75573,2662.6,2662.2,0.85855785]
[1724415493652,3.75573,2662.6,2662.2,4.61482785]
[1724415493859,3.7553,2662.9,2662.4,3.75593]
[1724415494268,3.7553,2662.9,2662.5,0.0405115]
[1724415494585,3.75545,2662.8,2662.5,0.0405115]
[1724415494789,3.7553,2662.9,2662.4,3.0]
[1724415495095,3.7553,2662.9,2662.6,0.04040954]
[1724415495294,3.7553,2662.9,2662.5,0.0405115]
[1724415495496,3.7553,2662.9,2662.7,0.04030758]
[1724415495667,3.7553,2662.9,2662.6,0.04040954]
[1724415495868,3.7553,2662.9,2662.8,0.04020563]
[1724415496065,3.7553,2662.9,2662.7,0.04030758]
[1724415496271,5.34150699,2663.0,2662.8,0.04020563]
[1724415496766,5.34150699,2663.0,2662.9,0.04010368]
[1724415496975,5.34150699,2663.0,2662.5,3.7558]
[1724415497298,1.58634699,2663.0,2662.6,0.04040954]
[1724415498154,5.34151699,2663.0,2662.6,0.04040954]
[1724415498782,6.21101,2663.2,2662.6,3.79611954]
[1724415499094,1.58634699,2663.1,2662.6,7.55175954]
[1724415499637,1.58634699,2663.1,2662.7,3.75557]
[1724415499764,1.58634699,2663.1,2662.8,0.75516195]
[1724415499958,1.58634699,2663.1,2662.9,0.04243817]
[1724415500264,1.58634699,2663.1,2662.7,6.06567]
[1724415500495,1.58634699,2663.1,2663.0,0.04232896]
[1724415500689,1.58634699,2663.1,2662.7,6.06567]
[1724415500852,1.58634699,2663.1,2663.0,0.04232896]
[1724415501189,5.34136699,2663.1,2663.0,0.04232896]
[1724415501356,5.34136699,2663.1,2662.6,3.75564]
[1724415501558,5.34136699,2663.1,2662.7,0.04265663]
[1724415501559,1.58634699,2662.9,2662.7,0.04265663]
[1724415502994,1.58634699,2663.0,2662.7,0.04265663]
[1724415504491,5.34132699,2663.2,2662.8,2.4281]
[1724415504857,5.34132699,2663.2,2662.9,0.04224245]
[1724415505167,1.58634699,2663.2,2662.9,0.04224245]
[1724415505502,6.18668,2663.4,2662.9,3.79745245]
[1724415505503,1.58634699,2663.3,2662.9,3.79745245]
[1724415506002,1.58634699,2663.3,2662.9,0.04224245]
[1724415506003,5.34136699,2663.1,2662.9,0.04224245]
[1724415506159,7.81716699,2663.1,2662.9,0.04224245]
[1724415506362,3.75524,2663.0,2662.5,3.75584]
[1724415506586,3.75524,2663.0,2662.6,0.03970095]
[1724415506765,5.34164699,2662.9,2662.6,0.03970095]
[1724415506965,3.75554,2662.8,2662.3,9.18454]
[1724415507161,1.58634699,2662.5,2662.4,0.03992271]
[1724415507472,1.58634699,2662.5,2662.2,0.81737044]
[1724415507674,1.58634699,2662.5,2662.4,0.03992271]
[1724415507865,1.58634699,2662.5,2662.3,0.0400247]
[1724415508200,1.58634699,2662.5,2662.4,0.03992271]
[1724415508361,1.58634699,2662.5,2662.1,3.75637]
[1724415508570,1.58634699,2662.5,2662.2,0.79140768]
[1724415509281,1.58634699,2662.5,2662.2,4.54767768]
[1724415511488,1.58634699,2662.5,2662.2,0.04012668]
[1724415511802,1.58634699,2662.3,2662.1,3.75636]
[1724415511965,1.58634699,2662.3,2662.2,0.04038958]
[1724415512165,1.58634699,2662.5,2662.2,0.04038958]
[1724415513180,1.58634699,2662.5,2662.1,3.75642]
[1724415513364,1.58634699,2662.5,2662.2,0.04038958]
[1724415514505,1.58634699,2662.5,2662.2,0.79571654]
[1724415514674,5.34204699,2662.7,2662.2,0.79571654]
[1724415514869,5.34204699,2662.7,2662.2,0.04038958]
[1724415516599,3.75573,2662.6,2662.2,0.04038958]
[1724415517607,3.75589,2662.5,2662.2,0.04038958]
[1724415517980,3.75589,2662.5,2662.3,0.04028759]
[1724415518195,3.75589,2662.5,2662.0,7.51295]
[1724415518392,3.75589,2662.5,2662.1,0.04049157]
[1724415518904,7.51156,2662.6,2662.1,0.04049157]
[1724415519111,3.75573,2662.6,2662.1,3.79685157]
[1724415519408,3.75573,2662.6,2662.2,2.3377]
[1724415519706,3.75573,2662.6,2662.3,0.03963705]
[1724415520067,3.75573,2662.6,2662.2,2.3377]
[1724415520397,3.75573,2662.6,2662.3,0.04246827]
[1724415520571,3.75573,2662.6,2662.2,2.3377]
[1724415520764,3.75573,2662.6,2662.3,0.04246827]
[1724415520970,3.75573,2662.6,2662.2,2.3377]
[1724415521179,3.75573,2662.6,2662.3,0.04246827]
[1724415521380,3.75573,2662.6,2662.2,2.3377]
[1724415521598,3.75573,2662.6,2662.3,0.04246827]
[1724415521802,3.75573,2662.6,2662.2,2.3377]
[1724415522014,3.75573,2662.6,2662.3,0.04246827]
[1724415522472,3.75573,2662.6,2662.2,3.54140797]
[1724415522669,3.75573,2662.6,2662.4,0.04235901]
[1724415522867,3.75573,2662.6,2662.3,0.04246827]
[1724415523073,3.75573,2662.6,2662.5,0.04224975]
[1724415523294,3.75573,2662.6,2662.4,0.04235901]
[1724415523495,3.75573,2662.6,2662.5,0.04224975]
[1724415523897,3.75573,2662.6,2662.2,2.3377]
[1724415524100,3.75573,2662.6,2662.5,0.04224975]
[1724415524273,3.75573,2662.6,2662.2,2.3377]
[1724415524476,3.75573,2662.6,2662.5,0.04224975]
[1724415524694,3.75573,2662.6,2662.2,2.3377]
[1724415524894,3.75573,2662.6,2662.5,0.04224975]
[1724415525112,1.58634699,2662.7,2662.2,6.09394]
[1724415525294,5.34202699,2662.7,2662.5,0.04224975]
[1724415525530,5.34202699,2662.7,2662.4,2.2941]
[1724415525531,3.75568,2662.7,2662.4,2.2941]
[1724415525708,3.75568,2662.7,2662.6,0.0421405]
[1724415525896,3.75568,2662.7,2662.5,0.04230226]
[1724415526221,3.75568,2662.7,2662.6,0.04219301]
[1724415526834,3.75574,2662.6,2662.2,2.4408]
[1724415526997,7.51158,2662.6,2662.3,0.619722]
[1724415527198,6.03654,2662.6,2662.1,3.75642]
[1724415528460,3.75574,2662.6,2662.1,3.75642]
[1724415532157,3.75574,2662.6,2662.1,7.51276]
[1724415532354,3.75574,2662.6,2662.1,3.75634]
[1724415532520,7.51154,2662.6,2662.2,0.04259664]
[1724415533152,3.75574,2662.6,2662.2,0.04259664]
[1724415533518,3.75574,2662.6,2662.2,0.86806627]
[1724415534333,3.75593,2662.5,2662.2,0.04259664]
[1724415534636,3.75593,2662.5,2662.0,8.2123097]
[1724415534849,3.75593,2662.5,2662.3,0.03965488]
[1724415535048,6.04253,2662.5,2662.0,8.2123097]
[1724415535254,6.04253,2662.5,2662.4,0.03955289]
[1724415535466,6.04253,2662.5,2662.0,6.02575]
[1724415535771,6.04253,2662.5,2662.4,0.03955289]
[1724415535934,6.04253,2662.5,2662.0,6.02575]
[1724415536147,3.75593,2662.5,2662.4,0.03955289]
[1724415536342,3.75555,2662.8,2662.2,3.75618]
[1724415536546,3.75532,2662.9,2662.4,3.7983781]
[1724415536750,3.75532,2662.9,2662.4,7.51183]
[1724415537090,3.75532,2662.9,2662.5,0.04226884]
[1724415538091,7.51072,2662.9,2662.5,0.04226884]
[1724415538655,3.75532,2662.9,2662.5,0.04226884]
[1724415538997,3.75532,2662.9,2662.5,0.69559752]
[1724415539141,7.51073,2662.9,2662.5,0.69559752]
[1724415540268,3.75547,2662.8,2662.5,0.69559752]
[1724415541368,3.75572,2662.6,2662.5,0.04226884]
[1724415541907,3.75572,2662.6,2662.5,0.0422545]
[1724415542079,7.51144,2662.6,2662.5,0.0422545]
[1724415542278,3.75596,2662.5,2662.1,2.2989]
[1724415542646,3.75613,2662.4,2662.1,2.2989]
[1724415542836,3.75613,2662.4,2662.2,0.22989]
[1724415543784,3.75586,2662.6,2662.2,0.22989]
[1724415545260,3.75552,2662.8,2662.3,2.2937]
[1724415545435,3.75552,2662.8,2662.3,6.04984]
[1724415545642,3.75552,2662.8,2662.3,7.51228]
[1724415545966,1.58634699,2663.0,2662.5,2.261]
[1724415545967,5.34152699,2663.0,2662.5,2.261]
[1724415546139,3.75514,2663.1,2662.5,6.01686]
[1724415546676,3.75514,2663.1,2662.5,6.01679]
[1724415546977,3.75514,2663.1,2662.5,9.77258]
[1724415547342,3.75514,2663.1,2662.5,6.01677]
[1724415547546,3.75514,2663.1,2662.6,0.89289233]
[1724415548149,3.75514,2663.1,2662.7,2.4537]
[1724415548347,3.75518,2663.0,2662.7,2.4537]
[1724415548579,3.75518,2663.0,2662.8,0.03909155]
[1724415548983,3.75518,2663.0,2662.7,2.4537]
[1724415549148,3.75518,2663.0,2662.9,0.04177458]
[1724415549349,3.75518,2663.0,2662.8,0.04188381]
[1724415549551,3.75518,2663.0,2662.9,0.04177458]
[1724415549980,3.75518,2663.0,2662.7,2.4537]
[1724415550288,3.75518,2663.0,2662.8,0.04188381]
[1724415550499,1.58634699,2663.1,2662.7,2.4537]
[1724415550500,5.34139699,2663.1,2662.7,2.4537]
[1724415550787,5.34139699,2663.1,2662.9,0.04177458]
[1724415550989,5.34139699,2663.1,2662.8,0.04188381]
[1724415551182,5.34139699,2663.1,2663.0,0.04166537]
[1724415551375,5.34139699,2663.1,2662.9,0.04177458]
[1724415551576,1.58634699,2663.1,2663.0,0.04166537]
[1724415551791,5.34136699,2663.1,2663.0,0.04166537]
[1724415551972,5.34136699,2663.1,2662.7,2.4537]
[1724415552177,5.34136699,2663.1,2663.0,0.04150308]
[1724415552492,6.48273969,2663.1,2663.0,0.04150308]
[1724415552692,6.48273969,2663.1,2662.7,2.4537]
[1724415552895,5.34136699,2663.1,2663.0,0.04150308]
[1724415553054,5.34136699,2663.1,2662.7,2.4537]
[1724415553255,5.34136699,2663.1,2663.0,0.04150308]
[1724415553591,5.34136699,2663.1,2662.7,2.4537]
[1724415553759,5.34136699,2663.1,2663.0,0.04150308]
[1724415553959,6.48273969,2663.1,2662.7,2.4537]
[1724415554159,5.34136699,2663.1,2663.0,0.04150308]
[1724415554693,5.34136699,2663.1,2662.7,2.4537]
[1724415554891,5.34136699,2663.1,2663.0,0.04150308]
[1724415555093,5.34136699,2663.1,2662.7,2.4537]
[1724415555298,5.34136699,2663.1,2663.0,0.04150308]
[1724415555484,5.34136699,2663.1,2662.7,2.4537]
[1724415555680,1.58634699,2663.1,2663.0,0.04150308]
[1724415555879,3.75469,2663.4,2662.8,3.75541]
[1724415555880,5.34112699,2663.3,2662.8,3.75541]
[1724415556081,1.58634699,2663.3,2663.0,0.04136943]
[1724415556269,6.04069,2663.4,2662.9,3.79669865]
[1724415556597,6.04069,2663.4,2663.1,0.04126022]
[1724415556763,7.1788237,2663.4,2663.0,0.04136943]
[1724415556965,6.04068,2663.4,2663.2,0.04115102]
[1724415557165,3.75477,2663.3,2663.1,0.04126022]
[1724415557360,5.34111699,2663.3,2662.8,3.75543]
[1724415558275,5.34111699,2663.3,2662.8,7.51086]
[1724415558276,1.58634699,2663.3,2662.8,7.51086]
[1724415558463,1.58634699,2663.3,2662.9,3.75528]
[1724415558663,1.58634699,2663.3,2662.9,4.751721]
[1724415558867,6.04068,2663.4,2662.9,4.751721]
[1724415559300,3.75468,2663.4,2662.9,4.751721]
[1724415563332,3.75468,2663.4,2662.9,0.996441]
[1724415563508,5.34102699,2663.4,2662.9,0.996441]
[1724415563711,5.34102699,2663.4,2662.8,3.75543]
[1724415563712,5.34102699,2663.4,2663.0,0.4751871]
[1724415564114,3.75468,2663.4,2663.0,6.6451371]
[1724415564709,7.62955699,2663.6,2663.0,6.6450071]
[1724415565127,7.62955699,2663.6,2663.1,3.7549]
[1724415565336,3.75441,2663.6,2663.2,3.75486]
[1724415565601,3.75421,2663.7,2663.3,2.790286]
[1724415567934,3.75392,2663.9,2663.4,7.50904]
[1724415568232,3.75375,2664.0,2663.5,3.75436]
[1724415568435,3.75375,2664.0,2663.5,1.0299156]
[1724415568794,3.75375,2664.0,2663.4,7.50902]
[1724415570039,3.75392,2663.9,2663.4,3.75451]
[1724415570534,3.7546,2663.4,2663.1,2.4349]
[1724415570736,1.58634699,2663.5,2663.1,2.4349]
[1724415571933,1.58634699,2663.5,2663.1,6.18992]
[1724415572135,5.34080699,2663.5,2663.1,2.4349]
[1724415573537,1.58634699,2663.2,2662.7,9.9362]
[1724415573738,3.75513,2663.1,2662.7,9.9362]
[1724415574506,1.58634699,2663.2,2662.7,9.9362]
[1724415575233,3.75503,2663.1,2662.7,9.9362]
[1724415575431,1.58634699,2663.2,2662.7,9.9362]
[1724415575619,5.34125699,2663.2,2662.7,9.9362]
[1724415577552,5.34125699,2663.2,2662.7,2.4462]
[1724415578079,5.34125699,2663.2,2662.7,6.20177]
[1724415579113,1.58634699,2663.2,2662.7,6.20177]
[1724415579314,5.34122699,2663.2,2662.7,7.197507]
[1724415582244,7.50928,2663.4,2662.8,3.75533]
[1724415582559,1.58634699,2663.3,2662.8,3.75533]
[1724415582743,5.34108699,2663.3,2662.8,3.75533]
[1724415583058,1.58634699,2663.3,2662.8,3.75533]
[1724415583350,1.58634699,2663.3,2662.8,7.5107]
[1724415583652,1.58634699,2663.3,2662.8,7.51069]
[1724415583823,1.58634699,2663.3,2662.8,8.6059527]
[1724415584024,1.58634699,2663.3,2662.8,4.8505927]
[1724415584232,5.34108699,2663.3,2662.8,4.8505927]
[1724415584547,5.34108699,2663.3,2662.8,8.6059527]
[1724415584753,5.34108699,2663.3,2662.8,4.8505927]
[1724415586462,9.09591699,2663.3,2662.8,4.8505927]
[1724415586627,5.34108699,2663.3,2662.8,4.8505927]
[1724415586826,9.09590699,2663.3,2662.8,4.8505927]
[1724415587364,5.34108699,2663.3,2662.9,3.05007927]
[1724415588736,9.09589699,2663.3,2662.9,3.05007927]
[1724415589079,5.34108699,2663.3,2662.9,2.3204]
[1724415589243,9.09590699,2663.3,2662.9,2.3204]
[1724415589422,5.34108699,2663.3,2662.9,2.3204]
[1724415589623,9.09590699,2663.3,2662.9,2.3204]
[1724415589919,3.75488,2663.2,2662.9,2.3204]
[1724415591358,3.75503,2663.1,2662.7,2.3592]
[1724415597198,3.75503,2663.1,2662.7,6.11477]
[1724415598786,3.75488,2663.2,2662.7,6.11477]
[1724415604556,3.75488,2663.2,2662.7,7.101811]
[1724415606284,5.34070699,2663.6,2662.9,2.3735]
[1724415606452,5.34070699,2663.6,2663.0,3.75513]
[1724415606453,3.75436,2663.6,2663.0,3.75513]
[1724415606653,3.75403,2663.8,2663.1,2.4313]
[1724415606850,5.34066699,2663.6,2663.2,0.24313]
[1724415607055,1.58634699,2663.4,2663.0,2.3626]
[1724415607618,5.34095699,2663.4,2663.0,2.3626]
[1724415608858,1.58634699,2663.2,2663.0,2.3626]
[1724415609125,5.34122699,2663.2,2663.0,2.3626]
[1724415609906,3.75558,2662.7,2662.3,14.801]
[1724415610083,1.58634699,2662.4,2662.2,7.49]
[1724415610390,3.75615,2662.3,2662.2,7.49]
[1724415611400,5.34247699,2662.4,2662.2,7.49]
[1724415611560,9.09860699,2662.4,2662.2,7.49]
[1724415611757,5.34243699,2662.4,2662.2,7.49]
[1724415612205,1.58634699,2662.4,2662.2,7.49]
[1724415612417,3.75615,2662.3,2662.2,7.49]
[1724415613171,3.75615,2662.3,2661.9,2.3894]
[1724415614567,3.75615,2662.3,2661.9,5.001017]
[1724415614785,1.58634699,2662.4,2661.9,5.001017]
[1724415615002,1.58634699,2662.4,2661.9,8.757707]
[1724415616521,5.34238699,2662.4,2661.9,8.757707]
[1724415617423,5.34238699,2662.4,2661.9,5.001017]
[1724415617924,3.75604,2662.4,2661.9,5.001017]
[1724415618239,3.75604,2662.4,2662.0,0.8757777]
[1724415618584,3.75615,2662.3,2662.0,0.8757777]
[1724415618794,3.75615,2662.3,2661.9,5.001017]
[1724415620020,9.09821699,2662.5,2661.9,8.757707]
[1724415620227,3.75604,2662.4,2661.9,8.757707]
[1724415621034,5.34226699,2662.5,2661.9,8.757707]
[1724415621328,5.34226699,2662.5,2661.9,12.514337]
[1724415621720,3.75602,2662.4,2661.9,8.757647]
[1724415622019,3.75616,2662.3,2661.9,5.001017]
[1724415622223,3.75616,2662.3,2661.9,2.3894]
[1724415622722,5.34250699,2662.3,2661.9,2.3894]
[1724415624512,3.75616,2662.3,2661.9,2.3894]
[1724415624913,3.75587,2662.5,2661.9,6.14611]
[1724415625104,3.75587,2662.5,2662.0,2.4413]
[1724415626276,3.75587,2662.5,2662.0,6.19786]
[1724415626391,3.75587,2662.5,2662.0,7.193317]
[1724415626908,3.75587,2662.5,2662.0,3.436757]
[1724415627287,3.75602,2662.4,2662.0,3.436757]
[1724415629790,3.75622,2662.3,2662.0,3.436757]
[1724415632053,3.75602,2662.4,2662.1,0.08028268]
[1724415632219,3.75602,2662.4,2662.1,0.80765665]
[1724415632550,7.51213,2662.4,2662.1,0.80765665]
[1724415632895,3.75616,2662.3,2662.1,0.80765665]
[1724415633095,3.75616,2662.3,2662.1,0.08028268]
[1724415637234,2.4742,2663.3,2662.2,2.3995]
[1724415637453,3.7553,2662.9,2662.6,2.3995]
[1724415637946,7.5102,2663.1,2662.7,0.07751114]
[1724415638133,3.75523,2663.0,2662.7,0.07751114]
[1724415639847,3.75488,2663.2,2662.7,0.07751114]
[1724415640014,3.75488,2663.2,2662.7,0.86691995]
[1724415640747,3.75502,2663.1,2662.7,0.86691995]
[1724415641750,3.75502,2663.1,2662.8,2.418]
[1724415641953,3.75502,2663.1,2662.8,2.49533603]
[1724415642518,3.75483,2663.3,2662.8,2.49533603]
[1724415642716,3.75495,2663.2,2662.8,2.49533603]
[1724415645063,3.75483,2663.3,2662.8,3.19936851]
[1724415645620,3.75489,2663.2,2662.8,3.19936851]
[1724415646759,3.75483,2663.3,2662.8,6.95477851]
[1724415646931,3.7546,2663.4,2663.0,3.75513]
[1724415647128,3.7546,2663.4,2663.1,0.07681964]
[1724415648163,3.75446,2663.5,2663.1,4.4464006]
[1724415648886,3.75446,2663.5,2663.2,2.2981]
[1724415649228,3.75446,2663.5,2663.3,0.07634472]
[1724415649653,3.75446,2663.5,2663.2,2.2981]
[1724415649856,3.75446,2663.5,2663.4,0.07624093]
[1724415650351,3.75446,2663.5,2663.2,2.2981]
[1724415650669,3.75446,2663.5,2663.3,0.07401787]
[1724415651031,3.75446,2663.5,2663.2,2.2981]
[1724415651231,3.75446,2663.5,2663.4,0.07391408]
[1724415651427,3.75446,2663.5,2663.2,2.2981]
[1724415651746,3.75432,2663.6,2663.3,0.07207822]
[1724415651953,3.75432,2663.6,2663.2,2.2981]
[1724415652328,3.75432,2663.6,2663.3,0.07207822]
[1724415652533,3.75432,2663.6,2663.2,2.2981]
[1724415652740,3.75432,2663.6,2663.3,0.07207822]
[1724415652942,3.75447,2663.5,2663.2,2.2981]
[1724415653142,3.75432,2663.6,2663.3,0.07207822]
[1724415653453,3.75432,2663.6,2663.2,2.2981]
[1724415653638,3.75432,2663.6,2663.4,0.07197443]
[1724415653834,3.75432,2663.6,2663.3,0.07207822]
[1724415654141,3.75432,2663.6,2663.4,0.07197443]
[1724415654342,3.75432,2663.6,2663.2,2.2981]
[1724415654573,3.75421,2663.7,2663.2,2.903409]
[1724415654774,3.75421,2663.7,2663.3,0.07207822]
[1724415654775,7.50848,2663.7,2663.3,0.07207822]
[1724415655182,7.50848,2663.7,2663.2,6.658169]
[1724415655356,7.50848,2663.7,2663.4,0.07197443]
[1724415655545,7.50848,2663.7,2663.2,6.658169]
[1724415655740,7.50848,2663.7,2663.3,0.07207822]
[1724415655944,7.50848,2663.7,2663.2,6.658169]
[1724415656178,7.50848,2663.7,2663.3,0.07207822]
[1724415656424,3.75421,2663.7,2663.3,0.07207822]
[1724415656583,3.75421,2663.7,2663.2,6.658169]
[1724415656877,3.75421,2663.7,2663.4,0.07197443]
[1724415657080,3.75421,2663.7,2663.3,0.07207822]
[1724415657244,3.75421,2663.7,2663.5,0.07187065]
[1724415657579,3.75421,2663.7,2663.6,0.07176688]
[1724415657800,3.75421,2663.7,2663.2,6.658169]
[1724415657951,3.75421,2663.7,2663.6,0.07176688]
[1724415658153,3.75421,2663.7,2663.5,2.2969]
[1724415658450,3.75421,2663.7,2663.6,0.07176688]
[1724415659896,5.34055699,2663.7,2663.6,0.07176688]
[1724415660101,3.75432,2663.6,2663.3,2.2969]
[1724415660600,1.58634699,2663.5,2663.1,2.4877]
[1724415660908,3.75461,2663.4,2663.0,3.75516]
[1724415661071,3.75461,2663.4,2663.0,5.57436925]
[1724415661604,5.34080699,2663.5,2663.0,5.57436925]
[1724415662181,3.75432,2663.6,2663.2,2.4877]
[1724415662764,6.7532,2664.4,2663.3,3.75473]
[1724415662765,6.24126,2664.0,2663.3,3.75473]
[1724415662963,3.75421,2663.7,2663.3,1.1583727]
[1724415665168,3.75421,2663.7,2663.3,4.9130827]
[1724415667066,7.50849,2663.7,2663.3,1.1583727]
[1724415667284,3.75421,2663.7,2663.2,6.24256]
[1724415667600,5.34055699,2663.7,2663.3,0.07168608]
[1724415668115,5.34055699,2663.7,2663.2,6.24256]
[1724415668304,5.34055699,2663.7,2663.4,0.07158229]
[1724415668497,5.34055699,2663.7,2663.3,0.07168608]
[1724415668685,5.34055699,2663.7,2663.5,0.07147851]
[1724415668894,5.34055699,2663.7,2663.4,0.07158229]
[1724415669089,3.7541,2663.8,2663.6,0.07137474]
[1724415669294,3.7541,2663.8,2663.5,2.35117851]
[1724415669611,3.7541,2663.8,2663.6,0.07137474]
[1724415670711,3.7820392,2665.1,2663.6,0.30648221]
[1724415670914,3.7538,2664.0,2663.6,0.07137474]
[1724415671702,5.34014699,2664.0,2663.6,0.07137474]
[1724415672017,3.75389,2663.9,2663.6,0.07137474]
[1724415672313,1.58634699,2664.0,2663.6,0.07137474]
[1724415673203,5.34022699,2664.0,2663.6,0.07137474]
[1724415673591,3.75388,2664.0,2663.6,0.68191721]
[1724415674825,3.75328,2664.4,2663.7,2.36168235]
[1724415675122,3.75334,2664.3,2663.9,2.2866]
[1724415675551,3.75334,2664.3,2664.0,0.07075048]
[1724415676018,7.50679,2664.3,2664.0,0.07075048]
[1724415676351,3.75361,2664.1,2664.0,0.07075048]
[1724415676504,3.75361,2664.1,2663.6,2.91724247]
[1724415676709,3.75361,2664.1,2663.7,1.04259825]
[1724415676906,3.75361,2664.1,2663.7,1.11365998]
[1724415677755,7.5073,2664.1,2663.7,1.11365998]
[1724415678065,3.75361,2664.1,2663.7,0.07106173]
[1724415679369,1.58634699,2664.2,2663.7,0.07106173]
[1724415679531,1.58634699,2664.4,2663.8,2.402]
[1724415679705,0.7622667,2664.4,2664.0,3.75374]
[1724415679912,3.75312,2664.5,2663.9,3.82464964]
[1724415680111,9.09258699,2664.5,2664.1,0.07056217]
[1724415680407,9.09258699,2664.5,2664.2,0.07045844]
[1724415680824,9.09258699,2664.5,2663.9,3.75388]
[1724415681025,9.09260699,2664.5,2664.3,0.07034137]